Workbook

Sheet 12 Burden Hours
A1: USDA RURAL UTILITIES SERVICE
A2: POWERING AFFORDABLE CLEAN ENERGY (ACE) PROGRAM
A3: INFORMATION COLLECTION BURDEN HOURS
A4: OMB # 0572-0159
A5: 2023-09-29
A7: Estimated No. of Total Respondents (Applicants) | C7: 250 | J7: Estimated No. of Total Awards (Awardees) | K7: 70
A8: Average hours per response | C8: =I9/G9 -> 10.71177551 | J8: Number of responses per respondent | K8: =G9/C7 -> 8.713
A9: Gray Columns have automatic formulas. DO NOT input numbers in these columns. | F9: TOTAL | G9: =SUM(G13:G51) -> 2178.25 | I9: =SUM(I13:I51) -> 23332.925 | K9: =SUM(K13:K51) -> 1451613.48
A10: (A) | B10: (B) | C10: (C) | E10: (D) | F10: (E) | G10: (F) | H10: (G) | I10: (H) | J10: (I) | K10: (J)
A11: NOFO Section | B11: Title | C11: Form No. (If Any) | D11: % of Respondents Line Item is Applicable To | E11: Estimated # of Respondents | F11: Reports Filed Annually | G11: Total Responses (D) x (E) | H11: Estimated # of Hours Per Response | I11: Estimated Total Hours (F) x (G) | J11: Prof. Wage Rate | K11: Total Cost (H) x (I)
A12: LOI AND APPLICATION CONTENT
A13: D.3 | B13: SAM Registration | C13: written | D13: 1 | E13: =$C$7*D13 -> 250 | F13: 1 | G13: =SUM(E13*F13) -> 250 | H13: 2 | I13: =SUM(G13*H13) -> 500 | J13: ='12 Est Prof Wage Rate'!G$13 -> 62.213095 | K13: =J13*I13 -> 31106.5475
A14: D.2(a) | B14: Step 1: Letter of Interest | C14: written | D14: 1 | E14: =$C$7*D14 -> 250 | F14: 1 | G14: 250 | H14: 5 | I14: =SUM(G14*H14) -> 1250 | J14: ='12 Est Prof Wage Rate'!G$13 -> 62.213095 | K14: =J14*I14 -> 77766.36875
A15: D.2(b) | B15: Step 2: Application
A16: D.2(b)(1) | B16: Loan Application Letter | C16: written | D16: 1 | E16: =$K$7*D16 -> 70 | F16: 1 | G16: =SUM(E16*F16) -> 70 | H16: 1 | I16: =SUM(G16*H16) -> 70 | J16: ='12 Est Prof Wage Rate'!G$13 -> 62.213095 | K16: =J16*I16 -> 4354.91665
A17: D.2(b)(2) | B17: Articles of Incorporation and Bylaws and Other Governing and Organizational Documents (New Borrowers or Current Borrowers with Organizational Changes) | C17: written | D17: 0.875 | E17: =$K$7*D17 -> 61.25 | F17: 1 | G17: =SUM(E17*F17) -> 61.25 | H17: 0.5 | I17: =SUM(G17*H17) -> 30.625 | J17: ='12 Est Prof Wage Rate'!G$13 -> 62.213095 | K17: =J17*I17 -> 1905.276034
A18: D.2(b)(3) | B18: Environmental - Categorical Exclusion without Report | C18: written | D18: 0.09 | E18: =$K$7*D18 -> 6.3 | F18: 1 | G18: =SUM(E18*F18) -> 6.3 | H18: 1 | I18: 6.3 | J18: ='12 Est Prof Wage Rate'!G$13 -> 62.213095 | K18: 391.9424985
A19: D.2(b)(3) | B19: Environmental - Categorical Exclusion with Report | C19: written | D19: 0.16 | E19: =$K$7*D19 -> 11.2 | F19: 1 | G19: 11.2 | H19: 20 | I19: 224 | J19: ='12 Est Prof Wage Rate'!G$13 -> 62.213095 | K19: 13935.73328
A20: D.2(b)(3) | B20: Environmental - Environmental Assessment | C20: written | D20: 0.7 | E20: =ROUNDDOWN($K$7*D20,0) -> 49 | F20: 1 | G20: 49 | H20: 50 | I20: 2450 | J20: ='12 Est Prof Wage Rate'!G$13 -> 62.213095 | K20: 152422.0828
A21: D.2(b)(3) | B21: Environmental - Environmental Impact Statement | C21: written | D21: 0.05 | E21: =$K$7*D21 -> 3.5 | F21: 1 | G21: 3.5 | H21: 150 | I21: 525 | J21: ='12 Est Prof Wage Rate'!G$13 -> 62.213095 | K21: 32661.87488
A22: D.2(b)(4) | B22: Financial Forecast | C22: written | D22: 1 | E22: 70 | F22: 1 | G22: =SUM(E22*F22) -> 70 | H22: 40 | I22: =SUM(G22*H22) -> 2800 | J22: ='12 Est Prof Wage Rate'!G$13 -> 62.213095 | K22: 174196.666
A23: D.2(b)(5) | B23: Power Purchase Agreement (Applicable) | C23: written | D23: 0.5 | E23: 35 | F23: 1 | G23: =SUM(E23*F23) -> 35 | H23: 40 | I23: =SUM(G23*H23) -> 1400 | J23: ='12 Est Prof Wage Rate'!G$13 -> 62.213095 | K23: =J23*I23 -> 87098.333
A24: D.2(b)(6) | B24: Power Resources Owned, Co-Owned or Leased (Applicable) | C24: written | D24: 0.5 | E24: 35 | F24: 1 | G24: =SUM(E24*F24) -> 35 | H24: 10 | I24: =SUM(G24*H24) -> 350 | J24: ='12 Est Prof Wage Rate'!G$13 -> 62.213095 | K24: =J24*I24 -> 21774.58325
A25: D.2(b)(7) | B25: Power Purchase Contracts (Applicable) | C25: written | D25: 0.5 | E25: 35 | F25: 1 | G25: =SUM(E25*F25) -> 35 | H25: 10 | I25: 350 | J25: ='12 Est Prof Wage Rate'!G$13 -> 62.213095 | K25: 21774.58325
A26: D.2(b)(8) | B26: Power Sales Contracts (Applicable) | C26: written | D26: 0.5 | E26: 35 | F26: 1 | G26: 35 | H26: 2 | I26: =SUM(G26*H26) -> 70 | J26: ='12 Est Prof Wage Rate'!G$13 -> 62.213095 | K26: =J26*I26 -> 4354.91665
A27: D.2(b)(9) | B27: Engineering Report | C27: written | D27: 1 | E27: 70 | F27: 1 | G27: =SUM(E27*F27) -> 70 | H27: 40 | I27: 2800 | J27: ='12 Est Prof Wage Rate'!G$13 -> 62.213095 | K27: 174196.666
A28: D.2(b)(10) | B28: Project Contracting (Listing) | C28: written | D28: 1 | E28: 70 | F28: 1 | G28: 70 | H28: 8 | I28: 560 | J28: ='12 Est Prof Wage Rate'!G$13 -> 62.213095 | K28: 34839.3332
A29: D.2(b)(10) | B29: Project Contracting (Applicable Selected Contracts) | C29: written | D29: 0.5 | E29: 35 | F29: 1 | G29: 35 | H29: 8 | I29: 280 | J29: ='12 Est Prof Wage Rate'!G$13 -> 62.213095 | K29: 17419.6666
A30: D.2(b)(11) | B30: Interconnection Agreements (Applicable) | C30: written | D30: 0.5 | E30: 35 | F30: 1 | G30: 35 | H30: 6 | I30: 210 | J30: ='12 Est Prof Wage Rate'!G$13 -> 62.213095 | K30: 13064.74995
A31: D.2(b)(12) | B31: System Impact Studies (Applicable) | C31: written | D31: 0.9 | E31: 63 | F31: 1 | G31: =SUM(E31*F31) -> 63 | H31: 6 | I31: =SUM(G31*H31) -> 378 | J31: ='12 Est Prof Wage Rate'!G$13 -> 62.213095 | K31: =J31*I31 -> 23516.54991
A32: D.2(b)(13) | B32: Transmission Service Arrangements (Applicable) | C32: written | D32: 0.9 | E32: 63 | F32: 1 | G32: 63 | H32: 6 | I32: 378 | J32: ='12 Est Prof Wage Rate'!G$13 -> 62.213095 | K32: =J32*I32 -> 23516.54991
A33: D.2(b)(14) | B33: Other Major Agreements (Applicable) | C33: written | D33: 0.5 | E33: 35 | F33: 1 | G33: 35 | H33: 20 | I33: 700 | J33: ='12 Est Prof Wage Rate'!G$13 -> 62.213095 | K33: 43549.1665
A34: D.2(b)(15) | B34: Meteorological Data and Studies (Applicable) | C34: written | D34: 0.85 | E34: 59.5 | F34: 1 | G34: =SUM(E34*F34) -> 59.5 | H34: 6 | I34: =SUM(G34*H34) -> 357 | J34: ='12 Est Prof Wage Rate'!G$13 -> 62.213095 | K34: =J34*I34 -> 22210.07492
A35: D.2(b)(16) | B35: Fuel and Fuel Transportation Strategies (Applicable) | C35: written | D35: 0.1 | E35: 7 | F35: 1 | G35: =SUM(E35*F35) -> 7 | H35: 6 | I35: =SUM(G35*H35) -> 42 | J35: ='12 Est Prof Wage Rate'!G$13 -> 62.213095 | K35: =J35*I35 -> 2612.94999
A36: D.2(b)(17) | B36: Sources and Uses of Water (Applicable) | C36: written | D36: 0.1 | E36: 7 | F36: 1 | G36: =SUM(E36*F36) -> 7 | H36: 6 | I36: =SUM(G36*H36) -> 42 | J36: ='12 Est Prof Wage Rate'!G$13 -> 62.213095 | K36: 2612.94999
A37: D.2(b)(18) | B37: Real Estate Matters (Applicable) | C37: written | D37: 0.5 | E37: 35 | F37: 1 | G37: =SUM(E37*F37) -> 35 | H37: 15 | I37: =SUM(G37*H37) -> 525 | J37: ='12 Est Prof Wage Rate'!G$13 -> 62.213095 | K37: =J37*I37 -> 32661.87488
A38: D.2(b)(19) | B38: Commuity Benefit Plan | C38: written | D38: 1 | E38: 70 | F38: 1 | G38: 70 | H38: 40 | I38: 2800 | J38: ='12 Est Prof Wage Rate'!G$13 -> 62.213095 | K38: 174196.666
A39: D.2(b)(20) | B39: Tribal Government Resolution of Consent (Applicable) | C39: written | D39: 0.25 | E39: =$K$7*D39 -> 17.5 | F39: 1 | G39: 17.5 | H39: 10 | I39: 175 | J39: ='12 Est Prof Wage Rate'!G$13 -> 62.213095 | K39: 10887.29162
A40: D.2(b)(21) | B40: Estimated Costs | C40: written | D40: 1 | E40: 70 | F40: 1 | G40: =SUM(E40*F40) -> 70 | H40: 1 | I40: =SUM(G40*H40) -> 70 | J40: ='12 Est Prof Wage Rate'!G$13 -> 62.213095 | K40: =J40*I40 -> 4354.91665
A41: AWARD CLOSING, SERVICING AND REPORTING
A42: F.1 | B42: Commitment Letter | C42: written | D42: 1 | E42: =$K$7*D42 -> 70 | F42: 1 | G42: =SUM(E42*F42) -> 70 | H42: 8 | I42: =SUM(G42*H42) -> 560 | J42: ='12 Est Prof Wage Rate'!G$13 -> 62.213095 | K42: =J42*I42 -> 34839.3332
E43: 0 | G43: 0 | J43: ='12 Est Prof Wage Rate'!G$13 -> 62.213095 | K43: 0
A44: F.1(j) | B44: Award Agreement | C44: written | D44: 1 | E44: 70 | F44: 1 | G44: 70 | H44: 10 | I44: =SUM(G44*H44) -> 700 | J44: ='12 Est Prof Wage Rate'!G$13 -> 62.213095 | K44: 43549.1665
A45: F.1(h) | B45: Opinion of Counsel | C45: written | D45: 1 | E45: 70 | F45: 1 | G45: 70 | H45: 8 | I45: =SUM(G45*H45) -> 560 | J45: ='12 Est Prof Wage Rate'!G$13 -> 62.213095 | K45: =J45*I45 -> 34839.3332
A46: F.1(i) | B46: Cypersecurity | C46: written | D46: 1 | E46: 70 | F46: 1 | G46: 70 | H46: 2 | I46: 140 | J46: ='12 Est Prof Wage Rate'!G$13 -> 62.213095 | K46: 8709.8333
A47: F.1(j) | B47: Request for Advances | C47: written | D47: 1 | E47: 70 | F47: 1 | G47: 70 | H47: 3 | I47: 210 | J47: ='12 Est Prof Wage Rate'!G$13 -> 62.213095 | K47: 13064.74995
A48: F.1(j) | B48: Request for Loan Forgiveness Information | C48: written | D48: 1 | E48: 70 | F48: 1 | G48: =SUM(E48*F48) -> 70 | H48: 2 | I48: =SUM(G48*H48) -> 140 | J48: ='12 Est Prof Wage Rate'!G$13 -> 62.213095 | K48: =J48*I48 -> 8709.8333
A49: F.3(a) | B49: Performance Reporting | C49: written | D49: 1 | E49: 70 | F49: 1 | G49: 70 | H49: 12 | I49: 840 | J49: ='12 Est Prof Wage Rate'!G$13 -> 62.213095 | K49: 52258.9998
A50: F.3(c) | B50: Audit Requirements | C50: written | D50: 1 | E50: 70 | F50: 1 | G50: 70 | H50: 11 | I50: 770 | J50: ='12 Est Prof Wage Rate'!G$13 -> 62.213095 | K50: 47904.08315
A51: D.3 | B51: SAM Registration Maintenance | C51: written | D51: 1 | E51: 70 | F51: 1 | G51: 70 | H51: 1 | I51: =SUM(G51*H51) -> 70 | J51: ='12 Est Prof Wage Rate'!G$13 -> 62.213095 | K51: =J51*I51 -> 4354.91665

Sheet 12 Not Inc in Burden Hours
A1: ='12 Burden Hours'!A1 -> USDA RURAL UTILITIES SERVICE
A2: ='12 Burden Hours'!A2 -> POWERING AFFORDABLE CLEAN ENERGY (ACE) PROGRAM
A3: INFORMATION COLLECTION NOT INCLUDED IN BURDEN HOURS
A4: ='12 Burden Hours'!A4 -> OMB # 0572-0159
A5: ='12 Burden Hours'!A5 -> 2023-09-29
A7: Estimated No. of Total Respondents (Applicants) | C7: 250 | J7: Estimated No. of Total Awards (Awardees) | K7: 30
A8: Average hours per response | C8: =I9/G9 -> 1 | J8: Number of responses per respondent | K8: =G9/C7 -> 1
A9: Gray Columns have automatic formulas. DO NOT input numbers in these columns. | F9: TOTAL | G9: =SUM(G13:G38) -> 250 | I9: =SUM(I13:I38) -> 250 | K9: =SUM(K13:K38) -> 15553.27375
A10: (A) | B10: (B) | C10: (C) | E10: (D) | F10: (E) | G10: (F) | H10: (G) | I10: (H) | J10: (I) | K10: (J)
A11: NOFO Section | B11: Title | C11: Form No. (If Any) | D11: % of Respondents Line Item is Applicable To | E11: Estimated # of Respondents | F11: Reports Filed Annually | G11: Total Responses (D) x (E) | H11: Estimated # of Hours Per Response | I11: Estimated Total Hours (F) x (G) | J11: Prof. Wage Rate | K11: Total Cost (H) x (I)
A12: LOI AND APPLICATION CONTENT - Step 1: Letter of Interest
A13: Notice to Open Portal Window | B13: Application for Federal Assistance - grants.gov | C13: SF 424 (4040-00004) | D13: 1 | E13: 250 | F13: 1 | G13: =SUM(E13*F13) -> 250 | H13: 1 | I13: =SUM(G13*H13) -> 250 | J13: ='12 Est Prof Wage Rate'!G$13 -> 62.213095 | K13: =J13*I13 -> 15553.27375

Sheet 12 Est Prof Wage Rate
A1: ='12 Burden Hours'!A1 -> USDA RURAL UTILITIES SERVICE
A2: ='12 Burden Hours'!A2 -> POWERING AFFORDABLE CLEAN ENERGY (ACE) PROGRAM
A3: ESTIMATED PROFESSIONAL WAGE RATE
A4: ='12 Burden Hours'!A4 -> OMB # 0572-0159
A5: ='12 Burden Hours'!A5 -> 2023-09-29
A7: Profession | B7: Bureau of Labor Occupation Code 1 | C7: Mean Wage 1 | D7: Benefits 2 | E7: Total Hourly Wage | F7: % Time Spent on Burden | G7: Weighted Hourly Salary
A8: Senior Manager | B8: 10-2021 | C8: 55.41 | D8: =IF(C8=0,"",(C8*$F$16)) -> 16.34595 | E8: =IF(SUM(C8:D8)=0,"",SUM(C8:D8)) -> 71.75595 | F8: 0.2 | G8: =IF(E8="","",(E8*F8)) -> 14.35119
A9: Attorney | B9: 23-1011 | C9: 71.17 | D9: =IF(C9=0,"",(C9*$F$16)) -> 20.99515 | E9: 92.16515 | F9: 0.1 | G9: 9.216515
A10: Electrical Engineer | B10: 17-2071 | C10: 51.87 | D10: =IF(C10=0,"",(C10*$F$16)) -> 15.30165 | E10: 67.17165 | F10: 0.3 | G10: 20.151495
A11: Accountant/Auditor | B11: 13-2011 | C11: 40.37 | D11: =IF(C11=0,"",(C11*$F$16)) -> 11.90915 | E11: 52.27915 | F11: 0.3 | G11: 15.683745
A12: Bookkeeping, Accounting, and Auditing Clerk | B12: 43-3031 | C12: 21.7 | D12: =IF(C12=0,"",(C12*$F$16)) -> 6.4015 | E12: 28.1015 | F12: 0.1 | G12: 2.81015
A13: TOTAL | D13: =IF(C13=0,"",(C13*#REF!)) ->  | F13: =SUM(F8:F12) -> 1 | G13: =SUM(G8:G12) -> 62.213095
A14: 1. U.S. Bureau of Laobr Statistics Occupational Employment and Wage Statistics | E14: https://www.bls.gov/oes/tables.htm
A15: 2. U.S. Bureau of Labor Statistics Economic News Release, Employer Costs for Employee Compensation - December 2022, Private Industry Workers Benefits %
B16: https://www.bls.gov/news.release/ecec.toc.htm | F16: 0.295

Sheet 14 Annual Cost to Fed Gov Est
A1: ='12 Burden Hours'!A1 -> USDA RURAL UTILITIES SERVICE
A2: ='12 Burden Hours'!A2 -> POWERING AFFORDABLE CLEAN ENERGY (ACE) PROGRAM
A3: ANNUALIZED COST TO THE FEDERAL GOVERNMENT
A4: ='12 Burden Hours'!A4 -> OMB # 0572-0159
A5: ='12 Burden Hours'!A5 -> 2023-09-29
A7: OPM GS Pay Tables - Table 2023 DCB | C7: https://www.opm.gov/policy-data-oversight/pay-leave/salaries-wages/2023/general-schedule
A8: OPM SES Schedules - Table 2023-ES | C8: Executive Senior Level (opm.gov)
A9: Benefit % (OMB Memo M-08 13) | B9: https://www.whitehouse.gov/wp-content/uploads/legacy_drupal_files/omb/memoranda/2008/m08-13.pdf | K9: 0.3625
A11: Gray & Blue Columns have automatic formulas. DO NOT input numbers in these columns. | G11: Total | H11: =H13+H19+H26+H37 -> 417 | I11: =I13+I19+I26+I37 -> 41660.85611 | K11: =K13+K19+K26+K37 -> 3224561.698
A12: Staff Position | B12: GS Grade | C12: GS Step | D12: GS Salary | E12: Hourly Rate Calc | F12: Benefits Calc | G12: Total Salary Rate Calc | H12: Hours Required | I12: Cost Subtotals | J12: # of Entities | K12: Total Costs
A13: Step 1 - Letter of Interest Review | H13: =SUM(H14:H18) -> 18 | I13: =SUM(I14:I18) -> 1712.787614 | J13: 250 | K13: =J13*I13 -> 428196.9035
A14: Policy Advisor | B14: 15 | C14: 5 | D14: 176458 | E14: =(D14/52)/40 -> 84.83557692 | F14: =E14*$K$9 -> 30.75289663 | G14: =E14+F14 -> 115.5884736 | H14: 2 | I14: =H14*G14 -> 231.1769471
A15: Senior Level Engineer | B15: 15 | C15: 5 | D15: 176458 | E15: =(D15/52)/40 -> 84.83557692 | F15: =E15*$K$9 -> 30.75289663 | G15: =E15+F15 -> 115.5884736 | H15: 3 | I15: =H15*G15 -> 346.7654207
A16: Senior Loan Specialist | B16: 13 | C16: 5 | D16: 126949 | E16: 61.03317308 | F16: 22.12452524 | G16: 83.15769832 | H16: 6 | I16: 498.9461899
A17: Engineer | B17: 13 | C17: 5 | D17: 126949 | E17: 61.03317308 | F17: 22.12452524 | G17: 83.15769832 | H17: 5 | I17: 415.7884916
A18: Assistant Administrator (Electric) | B18: SES | C18: SES | D18: =(195000+141022)/2 -> 168011 | E18: 80.77451923 | F18: 29.28076322 | G18: 110.0552825 | H18: 2 | I18: 220.1105649
A19: Step 2 - Pre-Application - 70 Entities | H19: =SUM(H20:H25) -> 179 | I19: =SUM(I20:I25) -> 17614.17794 | J19: 70 | K19: =J19*I19 -> 1232992.456
A20: Policy Advisor | B20: 15 | C20: 5 | D20: 176458 | E20: =(D20/52)/40 -> 84.83557692 | F20: =E20*$K$9 -> 30.75289663 | G20: =E20+F20 -> 115.5884736 | H20: 45 | I20: 5201.48131
A21: Senior Level Engineer | B21: 15 | C21: 5 | D21: 176458 | E21: =(D21/52)/40 -> 84.83557692 | F21: 30.75289663 | G21: =E21+F21 -> 115.5884736 | H21: 30 | I21: 3467.654207
A22: Senior Loan Specialist | B22: 13 | C22: 5 | D22: 126949 | E22: 61.03317308 | F22: 22.12452524 | G22: 83.15769832 | H22: 30 | I22: 2494.73095
A23: General Field Representative | B23: 13 | C23: 5 | D23: 126949 | E23: 61.03317308 | F23: 22.12452524 | G23: 83.15769832 | H23: 64 | I23: 5322.092692
A24: Deputy Assistant Administrator (OLOA) | B24: 15 | C24: 5 | D24: 176458 | E24: 84.83557692 | F24: 30.75289663 | G24: =E24+F24 -> 115.5884736 | H24: 5 | I24: 577.9423678
A25: Assistant Administrator (Electric) | B25: SES | C25: SES | D25: =(195000+141022)/2 -> 168011 | E25: 80.77451923 | F25: 29.28076322 | G25: 110.0552825 | H25: 5 | I25: 550.2764123
A26: Step 3 - Application Review & Loan Approval - 70 Entities | H26: =SUM(H27:H36) -> 195 | I26: =SUM(I27:I36) -> 19633.99855 | J26: 70 | K26: =J26*I26 -> 1374379.898
A27: Policy Advisor | B27: 15 | C27: 5 | D27: 176458 | E27: =(D27/52)/40 -> 84.83557692 | F27: =E27*$K$9 -> 30.75289663 | G27: =E27+F27 -> 115.5884736 | H27: 16 | I27: 1849.415577
A28: Senior Level Engineer | B28: 15 | C28: 5 | D28: 176458 | E28: =(D28/52)/40 -> 84.83557692 | F28: 30.75289663 | G28: =E28+F28 -> 115.5884736 | H28: 40 | I28: 4623.538942
A29: Senior Loan Specialist | B29: 13 | C29: 5 | D29: 126949 | E29: 61.03317308 | F29: 22.12452524 | G29: 83.15769832 | H29: 80 | I29: 6652.615865
A30: Financial Branch Chief | B30: 15 | C30: 5 | D30: 176458 | E30: 84.83557692 | F30: 30.75289663 | G30: =E30+F30 -> 115.5884736 | H30: 20 | I30: 2311.769471
A31: Consultant | G31: 100 | H31: 15 | I31: 1500
A32: Deputy Assistant Administrator (OLOA) | B32: 15 | C32: 5 | D32: 176458 | E32: 84.83557692 | F32: =E32*$K$9 -> 30.75289663 | G32: 115.5884736 | H32: 10 | I32: 1155.884736
A33: Assistant Administrator (Electric) | B33: SES | C33: SES | D33: =(195000+141022)/2 -> 168011 | E33: 80.77451923 | F33: 29.28076322 | G33: 110.0552825 | H33: 10 | I33: 1100.552825
A34: Assistant Administrator (WEP) | B34: SES | C34: SES | D34: =(195000+141022)/2 -> 168011 | E34: 80.77451923 | F34: 29.28076322 | G34: =E34+F34 -> 110.0552825 | H34: 1 | I34: 110.0552825
A35: Assistant Administrator (TELECOM) | B35: SES | C35: SES | D35: =(195000+141022)/2 -> 168011 | E35: 80.77451923 | F35: 29.28076322 | G35: =E35+F35 -> 110.0552825 | H35: 1 | I35: 110.0552825
A36: RUS Administrator | B36: ES | C36: ES | D36: =(195000+141022)/2 -> 168011 | E36: 80.77451923 | F36: 29.28076322 | G36: =E36+F36 -> 110.0552825 | H36: 2 | I36: 220.1105649
A37: Step 4 - Post Award - 70 Entities | H37: =SUM(H38:H42) -> 25 | I37: =SUM(I38:I42) -> 2699.892007 | J37: 70 | K37: =J37*I37 -> 188992.4405
A38: Senior Level Engineer | B38: 15 | C38: 5 | D38: 176458 | E38: =(D38/52)/40 -> 84.83557692 | F38: =E38*$K$9 -> 30.75289663 | G38: =E38+F38 -> 115.5884736 | H38: 5 | I38: 577.9423678
A39: Senior Loan Specialist | B39: 13 | C39: 5 | D39: 126949 | E39: 61.03317308 | F39: 22.12452524 | G39: 83.15769832 | H39: 5 | I39: 415.7884916
A40: Financial Branch Chief | B40: 15 | C40: 5 | D40: 176458 | E40: 84.83557692 | F40: 30.75289663 | G40: 115.5884736 | H40: 5 | I40: 577.9423678
A41: Deputy Assistant Administrator (OLOA) | B41: 15 | C41: 5 | D41: 176458 | E41: 84.83557692 | F41: 30.75289663 | G41: =E41+F41 -> 115.5884736 | H41: 5 | I41: 577.9423678
A42: Assistant Administrator (Electric) | B42: SES | C42: SES | D42: =(195000+141022)/2 -> 168011 | E42: 80.77451923 | F42: 29.28076322 | G42: 110.0552825 | H42: 5 | I42: 550.2764123
